[Event "*** SCC Grand Prix: Titled Tuesday Blitz"]
[Site "Chess.com"]
[Date "2020.06.23"]
[Round "10"]
[White "rugbyclub"]
[Black "MartinMatthiesen"]
[Result "0-1"]
[WhiteElo "2130"]
[BlackElo "2324"]
[TimeControl "180+1"]
[EndTime "11:54:28 PDT"]
[Termination "MartinMatthiesen won by resignation"]

1. c4 {[%clk 0:02:44.2]} 1... c5 {[%clk 0:02:57.9]} 2. g3 {[%clk 0:02:43.4]}
2... g6 {[%clk 0:02:57.7]} 3. Bg2 {[%clk 0:02:43.6]} 3... Bg7 {[%clk 0:02:58.6]}
4. Nf3 {[%clk 0:02:43.3]} 4... Nc6 {[%clk 0:02:57.8]} 5. Nc3 {[%clk 0:02:43.9]}
5... e6 {[%clk 0:02:58]} 6. e3 {[%clk 0:02:41.3]} 6... Nge7 {[%clk 0:02:57.8]}
7. O-O {[%clk 0:02:41.5]} 7... O-O {[%clk 0:02:57.2]} 8. d4 {[%clk 0:02:41.2]}
8... d6 {[%clk 0:02:57.2]} 9. b3 {[%clk 0:02:36.4]} 9... Rb8 {[%clk 0:02:43.5]}
10. Bb2 {[%clk 0:02:36.1]} 10... b6 {[%clk 0:02:43.2]} 11. Qd2 {[%clk
0:02:34.6]} 11... Bb7 {[%clk 0:02:42.2]} 12. d5 {[%clk 0:02:34]} 12... exd5
{[%clk 0:02:39.3]} 13. cxd5 {[%clk 0:02:33.9]} 13... Nb4 {[%clk 0:02:33.8]} 14.
e4 {[%clk 0:02:33.9]} 14... Ba6 {[%clk 0:02:28.7]} 15. Rfe1 {[%clk 0:02:32.8]}
15... Nd3 {[%clk 0:02:28.2]} 16. Red1 {[%clk 0:02:23.4]} 16... f5 {[%clk
0:02:22.5]} 17. exf5 {[%clk 0:02:18.8]} 17... Nxb2 {[%clk 0:02:05.3]} 18. Qxb2
{[%clk 0:02:18]} 18... Nxf5 {[%clk 0:02:05]} 19. Qd2 {[%clk 0:02:17.1]} 19...
Nd4 {[%clk 0:01:57.5]} 20. Nxd4 {[%clk 0:02:15.4]} 20... Bxd4 {[%clk 0:01:56.8]}
21. Ne4 {[%clk 0:02:13.8]} 21... Bxa1 {[%clk 0:01:42.9]} 22. Rxa1 {[%clk
0:02:14.7]} 22... Bc8 {[%clk 0:01:43]} 23. Qh6 {[%clk 0:02:07.3]} 23... Qe7
{[%clk 0:01:33.5]} 24. Re1 {[%clk 0:02:05.6]} 24... Bf5 {[%clk 0:01:28.9]} 25.
Re3 {[%clk 0:02:02.4]} 25... Bxe4 {[%clk 0:01:28.2]} 26. Rxe4 {[%clk 0:02:01.3]}
26... Qg7 {[%clk 0:01:27.6]} 27. Qxg7+ {[%clk 0:02:00.4]} 27... Kxg7 {[%clk
0:01:27.6]} 28. Re6 {[%clk 0:01:59.2]} 28... Rf6 {[%clk 0:01:26.6]} 29. Re7+
{[%clk 0:01:58.8]} 29... Rf7 {[%clk 0:01:26.9]} 30. Re6 {[%clk 0:01:58.8]} 30...
Rd8 {[%clk 0:01:27]} 31. f4 {[%clk 0:01:56.5]} 31... b5 {[%clk 0:01:24.3]} 32.
Bh3 {[%clk 0:01:55.2]} 32... Rc7 {[%clk 0:01:22.5]} 33. f5 {[%clk 0:01:54.3]}
33... c4 {[%clk 0:01:18.2]} 34. bxc4 {[%clk 0:01:53.3]} 34... bxc4 {[%clk
0:01:17.8]} 35. f6+ {[%clk 0:01:54]} 35... Kf7 {[%clk 0:01:17.7]} 36. g4 {[%clk
0:01:50.2]} 36... c3 {[%clk 0:01:14.1]} 0-1

[Event "*** SCC Grand Prix: Titled Tuesday Blitz"]
[Site "Chess.com"]
[Date "2020.06.23"]
[Round "10"]
[White "andriipalchuk"]
[Black "Th3_Hound"]
[Result "0-1"]
[WhiteElo "2383"]
[BlackElo "2537"]
[TimeControl "180+1"]
[EndTime "11:54:35 PDT"]
[Termination "Th3_Hound won on time"]

1. Nf3 {[%clk 0:03:00.9]} 1... d5 {[%clk 0:02:58.8]} 2. d4 {[%clk 0:02:57.4]}
2... Nf6 {[%clk 0:02:57.9]} 3. c4 {[%clk 0:02:57.4]} 3... c6 {[%clk 0:02:57.5]}
4. e3 {[%clk 0:02:55]} 4... g6 {[%clk 0:02:57.3]} 5. Nc3 {[%clk 0:02:54.5]} 5...
Bg7 {[%clk 0:02:57.9]} 6. Be2 {[%clk 0:02:52.7]} 6... O-O {[%clk 0:02:58.1]} 7.
O-O {[%clk 0:02:53]} 7... Bg4 {[%clk 0:02:58]} 8. Ne5 {[%clk 0:02:48.9]} 8...
Bxe2 {[%clk 0:02:58]} 9. Qxe2 {[%clk 0:02:49.8]} 9... Nbd7 {[%clk 0:02:56.9]}
10. Nxd7 {[%clk 0:02:49.7]} 10... Qxd7 {[%clk 0:02:56.7]} 11. b3 {[%clk
0:02:50.3]} 11... Rac8 {[%clk 0:02:52.1]} 12. Bb2 {[%clk 0:02:48.5]} 12... Rfe8
{[%clk 0:02:46.5]} 13. Rfd1 {[%clk 0:02:39.8]} 13... e6 {[%clk 0:02:44.5]} 14.
Rac1 {[%clk 0:02:38.2]} 14... Red8 {[%clk 0:02:41.2]} 15. h3 {[%clk 0:02:37.9]}
15... Qc7 {[%clk 0:02:37.9]} 16. e4 {[%clk 0:02:36.3]} 16... dxe4 {[%clk
0:02:37.5]} 17. Nxe4 {[%clk 0:02:35.8]} 17... Nxe4 {[%clk 0:02:37.3]} 18. Qxe4
{[%clk 0:02:35.3]} 18... Rd7 {[%clk 0:02:37.6]} 19. Rd3 {[%clk 0:02:31.8]} 19...
Rcd8 {[%clk 0:02:37.4]} 20. Rcd1 {[%clk 0:02:31.7]} 20... Qa5 {[%clk 0:02:34.8]}
21. a3 {[%clk 0:02:27.6]} 21... Qf5 {[%clk 0:02:34.4]} 22. Qe2 {[%clk
0:02:23.7]} 22... c5 {[%clk 0:02:28.9]} 23. Qe3 {[%clk 0:02:10.9]} 23... Qf6
{[%clk 0:02:25.1]} 0-1

[Event "*** SCC Grand Prix: Titled Tuesday Blitz"]
[Site "Chess.com"]
[Date "2020.06.23"]
[Round "10"]
[White "RobertoJBM"]
[Black "WildTricks"]
[Result "0-1"]
[WhiteElo "2660"]
[BlackElo "2513"]
[TimeControl "180+1"]
[EndTime "11:54:40 PDT"]
[Termination "WildTricks won by resignation"]

1. e4 {[%clk 0:03:00.9]} 1... e5 {[%clk 0:02:59.4]} 2. Nf3 {[%clk 0:02:59.7]}
2... Nc6 {[%clk 0:02:59.1]} 3. Bb5 {[%clk 0:02:59.5]} 3... g6 {[%clk 0:02:58.9]}
4. d4 {[%clk 0:02:59.2]} 4... exd4 {[%clk 0:02:58.3]} 5. Nxd4 {[%clk 0:03:00.1]}
5... Bg7 {[%clk 0:02:57.8]} 6. Be3 {[%clk 0:02:56.5]} 6... Nf6 {[%clk
0:02:54.3]} 7. Nc3 {[%clk 0:02:55.4]} 7... O-O {[%clk 0:02:53.8]} 8. O-O {[%clk
0:02:54.8]} 8... Ng4 {[%clk 0:02:52.7]} 9. Qxg4 {[%clk 0:02:49]} 9... Nxd4
{[%clk 0:02:52.3]} 10. Bd3 {[%clk 0:02:49.1]} 10... d5 {[%clk 0:02:52.1]} 11.
Qd1 {[%clk 0:02:49]} 11... dxe4 {[%clk 0:02:52]} 12. Bxe4 {[%clk 0:02:49.9]}
12... Nf5 {[%clk 0:02:51.7]} 13. Qxd8 {[%clk 0:02:44.9]} 13... Rxd8 {[%clk
0:02:51.5]} 14. Bf4 {[%clk 0:02:45.4]} 14... c6 {[%clk 0:02:51]} 15. Rfd1 {[%clk
0:02:44]} 15... Be6 {[%clk 0:02:50.3]} 16. Bd3 {[%clk 0:02:41.5]} 16... Rd7
{[%clk 0:02:46]} 17. Ne4 {[%clk 0:02:38.2]} 17... Bxb2 {[%clk 0:02:44.5]} 18.
Rab1 {[%clk 0:02:35]} 18... Bd4 {[%clk 0:02:43.8]} 19. c3 {[%clk 0:02:30.2]}
19... Bg7 {[%clk 0:02:40.3]} 20. Nc5 {[%clk 0:02:30.2]} 20... Re7 {[%clk
0:02:35.7]} 21. Rxb7 {[%clk 0:02:20.9]} 21... Rxb7 {[%clk 0:02:34.7]} 22. Nxb7
{[%clk 0:02:21.8]} 22... Bxc3 {[%clk 0:02:29.9]} 23. Be4 {[%clk 0:02:21.3]}
23... Bxa2 {[%clk 0:02:14.7]} 24. Bxc6 {[%clk 0:02:21.1]} 24... Rc8 {[%clk
0:02:11.4]} 25. Bd7 {[%clk 0:02:17.2]} 25... Rf8 {[%clk 0:02:08.2]} 26. g4
{[%clk 0:01:57.3]} 26... Nh4 {[%clk 0:01:57.7]} 27. Bd6 {[%clk 0:01:52.7]} 27...
Ra8 {[%clk 0:01:56.8]} 28. Rd3 {[%clk 0:01:44.2]} 28... Bf6 {[%clk 0:01:49.4]}
29. f4 {[%clk 0:01:39.4]} 29... Bc4 {[%clk 0:01:40.7]} 30. Rd1 {[%clk
0:01:19.9]} 30... Be2 {[%clk 0:01:40.5]} 31. Rd5 {[%clk 0:01:13.5]} 31... Bf3
{[%clk 0:01:40.2]} 32. Rd3 {[%clk 0:01:11.6]} 32... Bxb7 {[%clk 0:01:39.2]} 0-1

[Event "*** SCC Grand Prix: Titled Tuesday Blitz"]
[Site "Chess.com"]
[Date "2020.06.23"]
[Round "10"]
[White "killer311"]
[Black "BogdanDeac"]
[Result "0-1"]
[WhiteElo "2417"]
[BlackElo "2789"]
[TimeControl "180+1"]
[EndTime "11:54:45 PDT"]
[Termination "BogdanDeac won by resignation"]

1. d4 {[%clk 0:03:00.9]} 1... Nf6 {[%clk 0:02:58.3]} 2. c4 {[%clk 0:03:01.4]}
2... e6 {[%clk 0:02:58.1]} 3. Nc3 {[%clk 0:03:00]} 3... Bb4 {[%clk 0:02:57.5]}
4. Bd2 {[%clk 0:02:59.1]} 4... c5 {[%clk 0:02:53]} 5. e3 {[%clk 0:02:58.5]} 5...
cxd4 {[%clk 0:02:52.3]} 6. exd4 {[%clk 0:02:57.6]} 6... O-O {[%clk 0:02:51.8]}
7. Nf3 {[%clk 0:02:57.6]} 7... d5 {[%clk 0:02:51.7]} 8. Rc1 {[%clk 0:02:53.4]}
8... Nc6 {[%clk 0:02:50.3]} 9. c5 {[%clk 0:02:44.4]} 9... b6 {[%clk 0:02:44.9]}
10. cxb6 {[%clk 0:02:43.3]} 10... Bxc3 {[%clk 0:02:38.7]} 11. Bxc3 {[%clk
0:02:41]} 11... Qxb6 {[%clk 0:02:38.6]} 12. Bd3 {[%clk 0:02:41.2]} 12... Ba6
{[%clk 0:02:38.6]} 13. O-O {[%clk 0:02:40.3]} 13... Bxd3 {[%clk 0:02:38.4]} 14.
Qxd3 {[%clk 0:02:41.2]} 14... a5 {[%clk 0:02:38.1]} 15. a3 {[%clk 0:02:38.8]}
15... Ne4 {[%clk 0:02:36.6]} 16. Nd2 {[%clk 0:02:33.9]} 16... Nd6 {[%clk
0:02:33.6]} 17. Rfe1 {[%clk 0:02:30.4]} 17... Rfc8 {[%clk 0:02:32.4]} 18. b3
{[%clk 0:02:26.5]} 18... Nb5 {[%clk 0:02:32.1]} 19. Nf3 {[%clk 0:02:12.7]} 19...
h6 {[%clk 0:02:23]} 20. a4 {[%clk 0:02:09.3]} 20... Nd6 {[%clk 0:02:18.9]} 21.
Bd2 {[%clk 0:02:06]} 21... Nb4 {[%clk 0:02:15.6]} 22. Bxb4 {[%clk 0:02:04.1]}
22... Qxb4 {[%clk 0:02:15.3]} 23. Rxc8+ {[%clk 0:02:04.3]} 23... Rxc8 {[%clk
0:02:14.8]} 24. Qd2 {[%clk 0:02:01.5]} 24... Rc3 {[%clk 0:02:11.7]} 25. Re3
{[%clk 0:01:57]} 25... Rxb3 {[%clk 0:02:04.5]} 26. Rxb3 {[%clk 0:01:54.6]} 26...
Qxb3 {[%clk 0:02:04.3]} 27. Qxa5 {[%clk 0:01:52.6]} 27... Qd1+ {[%clk 0:02:04]}
28. Qe1 {[%clk 0:01:52.3]} 28... Qxa4 {[%clk 0:02:03.1]} 29. g3 {[%clk 0:01:50]}
29... Qc2 {[%clk 0:02:01.3]} 30. Kg2 {[%clk 0:01:49.9]} 30... Ne4 {[%clk
0:01:57.4]} 31. Qe3 {[%clk 0:01:49.2]} 31... f6 {[%clk 0:01:54.1]} 32. Ne1
{[%clk 0:01:48]} 32... Qd2 {[%clk 0:01:53.6]} 33. Qxd2 {[%clk 0:01:44.7]} 33...
Nxd2 {[%clk 0:01:54.5]} 34. Nd3 {[%clk 0:01:44.2]} 34... Nb3 {[%clk 0:01:52.7]}
35. Nf4 {[%clk 0:01:44.2]} 35... Nxd4 {[%clk 0:01:52.3]} 36. Nd3 {[%clk
0:01:39.6]} 36... Kf7 {[%clk 0:01:50.3]} 37. Nc5 {[%clk 0:01:40.5]} 37... e5
{[%clk 0:01:49.6]} 38. f4 {[%clk 0:01:40.8]} 38... Ne6 {[%clk 0:01:46.7]} 39.
Nd7 {[%clk 0:01:35.9]} 39... exf4 {[%clk 0:01:46.2]} 40. gxf4 {[%clk 0:01:36.3]}
40... Nxf4+ {[%clk 0:01:47]} 41. Kf3 {[%clk 0:01:37.2]} 41... g5 {[%clk
0:01:47.8]} 42. Nb6 {[%clk 0:01:36.7]} 42... f5 {[%clk 0:01:46.9]} 43. h4 {[%clk
0:01:37.3]} 43... d4 {[%clk 0:01:44.6]} 44. hxg5 {[%clk 0:01:38.2]} 44... hxg5
{[%clk 0:01:45.2]} 45. Nc4 {[%clk 0:01:37.6]} 45... Ke6 {[%clk 0:01:44.5]} 0-1

[Event "*** SCC Grand Prix: Titled Tuesday Blitz"]
[Site "Chess.com"]
[Date "2020.06.23"]
[Round "10"]
[White "Stronger1799"]
[Black "DishonorOnYourCow"]
[Result "1-0"]
[WhiteElo "2473"]
[BlackElo "2329"]
[TimeControl "180+1"]
[EndTime "11:54:48 PDT"]
[Termination "Stronger1799 won by resignation"]

1. e4 {[%clk 0:03:00.9]} 1... e5 {[%clk 0:02:59]} 2. Nf3 {[%clk 0:03:01.1]} 2...
Nc6 {[%clk 0:02:59.5]} 3. Bb5 {[%clk 0:03:01.7]} 3... Nf6 {[%clk 0:02:59.2]} 4.
d4 {[%clk 0:03:01.9]} 4... exd4 {[%clk 0:02:56]} 5. O-O {[%clk 0:03:02.1]} 5...
d6 {[%clk 0:02:52.4]} 6. e5 {[%clk 0:03:00.9]} 6... dxe5 {[%clk 0:02:50.8]} 7.
Nxe5 {[%clk 0:03:01.8]} 7... Qd6 {[%clk 0:02:43.4]} 8. Bf4 {[%clk 0:02:58.2]}
8... Qd5 {[%clk 0:02:38.4]} 9. c4 {[%clk 0:02:49.1]} 9... dxc3 {[%clk
0:02:12.1]} 10. Nxc3 {[%clk 0:02:26]} 10... Qxd1 {[%clk 0:02:06.4]} 11. Raxd1
{[%clk 0:02:26.9]} 11... Bd7 {[%clk 0:02:02.1]} 12. Rxd7 {[%clk 0:02:17.4]}
12... Nxd7 {[%clk 0:02:01.2]} 13. Nxc6 {[%clk 0:02:18.3]} 13... bxc6 {[%clk
0:01:57.4]} 14. Bxc6 {[%clk 0:02:19.2]} 14... Rd8 {[%clk 0:01:51.6]} 15. Re1+
{[%clk 0:02:18.7]} 15... Be7 {[%clk 0:01:50]} 16. Nd5 {[%clk 0:01:59.3]} 16...
Kf8 {[%clk 0:01:29.1]} 17. Nxe7 {[%clk 0:01:36.9]} 17... Re8 {[%clk 0:01:26.1]}
18. Bxc7 {[%clk 0:01:25]} 18... Rxe7 {[%clk 0:01:07]} 19. Bd6 {[%clk 0:01:21.4]}
19... Nf6 {[%clk 0:00:55.9]} 20. Bxe7+ {[%clk 0:01:11.4]} 20... Kg8 {[%clk
0:00:56]} 21. Bxf6 {[%clk 0:01:11.3]} 21... gxf6 {[%clk 0:00:56.9]} 22. Re8+
{[%clk 0:01:11.6]} 22... Kg7 {[%clk 0:00:57.5]} 23. Rxh8 {[%clk 0:01:12]} 23...
Kxh8 {[%clk 0:00:58.4]} 24. f4 {[%clk 0:01:12.1]} 1-0

[Event "*** SCC Grand Prix: Titled Tuesday Blitz"]
[Site "Chess.com"]
[Date "2020.06.23"]
[Round "10"]
[White "peixe64"]
[Black "szachuspl"]
[Result "1-0"]
[WhiteElo "2374"]
[BlackElo "2535"]
[TimeControl "180+1"]
[EndTime "11:54:54 PDT"]
[Termination "peixe64 won by resignation"]

1. e4 {[%clk 0:03:00.9]} 1... g6 {[%clk 0:03:00.1]} 2. d4 {[%clk 0:03:01.1]}
2... Bg7 {[%clk 0:03:00.8]} 3. Nf3 {[%clk 0:03:01.7]} 3... c5 {[%clk 0:03:01.2]}
4. d5 {[%clk 0:03:01.8]} 4... d6 {[%clk 0:03:00.7]} 5. Nc3 {[%clk 0:03:01.9]}
5... Nf6 {[%clk 0:03:01.3]} 6. h3 {[%clk 0:03:00.3]} 6... O-O {[%clk 0:03:01.4]}
7. Bd3 {[%clk 0:03:00.9]} 7... e6 {[%clk 0:03:02]} 8. dxe6 {[%clk 0:03:00.1]}
8... Bxe6 {[%clk 0:03:01.7]} 9. O-O {[%clk 0:03:00.7]} 9... Nc6 {[%clk
0:03:02.1]} 10. Bg5 {[%clk 0:02:59.7]} 10... h6 {[%clk 0:03:01.1]} 11. Bh4
{[%clk 0:02:57.1]} 11... g5 {[%clk 0:03:01.5]} 12. Bg3 {[%clk 0:02:57.3]} 12...
Nh5 {[%clk 0:03:02]} 13. Bh2 {[%clk 0:02:54.2]} 13... Nf4 {[%clk 0:02:52.7]} 14.
Bxf4 {[%clk 0:02:53.4]} 14... gxf4 {[%clk 0:02:53.6]} 15. Qd2 {[%clk 0:02:50.4]}
15... Be5 {[%clk 0:02:53.4]} 16. Nd5 {[%clk 0:02:44.6]} 16... f5 {[%clk
0:02:46.8]} 17. Nxf4 {[%clk 0:02:37.2]} 17... Bxf4 {[%clk 0:02:19]} 18. Qxf4
{[%clk 0:02:36]} 18... fxe4 {[%clk 0:02:12.2]} 19. Qxe4 {[%clk 0:02:31.4]} 19...
Qd7 {[%clk 0:02:12.4]} 20. Qg6+ {[%clk 0:02:23.5]} 20... Kh8 {[%clk 0:02:12.6]}
21. Qxh6+ {[%clk 0:02:21.5]} 21... Kg8 {[%clk 0:02:12.8]} 22. Ng5 {[%clk
0:02:15.4]} 22... Bf5 {[%clk 0:02:06.9]} 23. Bc4+ {[%clk 0:01:57.1]} 23... d5
{[%clk 0:02:06.8]} 24. Rad1 {[%clk 0:01:55.3]} 24... Nd4 {[%clk 0:02:02.9]} 25.
Bd3 {[%clk 0:01:33.3]} 25... Qg7 {[%clk 0:01:56.4]} 26. Qxg7+ {[%clk 0:01:26.2]}
26... Kxg7 {[%clk 0:01:56]} 27. c3 {[%clk 0:01:26.3]} 27... Bxd3 {[%clk
0:01:50.8]} 28. Rxd3 {[%clk 0:01:23.8]} 28... Ne2+ {[%clk 0:01:51.2]} 29. Kh2
{[%clk 0:01:21.5]} 29... Nf4 {[%clk 0:01:51.5]} 30. Rd2 {[%clk 0:01:15.1]} 30...
Kg6 {[%clk 0:01:48.7]} 31. Nf3 {[%clk 0:01:11.7]} 31... Rad8 {[%clk 0:01:47.6]}
32. g3 {[%clk 0:01:08.7]} 32... Nxh3 {[%clk 0:01:37.4]} 33. Nh4+ {[%clk
0:01:07.6]} 33... Kg5 {[%clk 0:01:36.8]} 34. Kxh3 {[%clk 0:01:08]} 34... d4
{[%clk 0:01:36.7]} 35. f4+ {[%clk 0:01:06.5]} 35... Kf6 {[%clk 0:01:36.3]} 36.
cxd4 {[%clk 0:01:06.5]} 36... cxd4 {[%clk 0:01:36.6]} 37. Rfd1 {[%clk
0:01:06.6]} 1-0

[Event "*** SCC Grand Prix: Titled Tuesday Blitz"]
[Site "Chess.com"]
[Date "2020.06.23"]
[Round "10"]
[White "Batsai"]
[Black "Bastiandash"]
[Result "1-0"]
[WhiteElo "2362"]
[BlackElo "2202"]
[TimeControl "180+1"]
[EndTime "11:55:04 PDT"]
[Termination "Batsai won by checkmate"]

1. e4 {[%clk 0:03:00.9]} 1... c5 {[%clk 0:02:58.6]} 2. Nf3 {[%clk 0:03:01]} 2...
e6 {[%clk 0:02:56.1]} 3. d4 {[%clk 0:03:01.9]} 3... cxd4 {[%clk 0:02:57]} 4.
Nxd4 {[%clk 0:03:02.8]} 4... a6 {[%clk 0:02:56.2]} 5. Nc3 {[%clk 0:03:03.4]}
5... b5 {[%clk 0:02:55.4]} 6. e5 {[%clk 0:02:59.8]} 6... Qc7 {[%clk 0:02:50.8]}
7. f4 {[%clk 0:02:59]} 7... Bb7 {[%clk 0:02:51.4]} 8. Be3 {[%clk 0:02:54.1]}
8... d6 {[%clk 0:02:51.8]} 9. Bxb5+ {[%clk 0:02:48.2]} 9... axb5 {[%clk
0:02:50.5]} 10. Ndxb5 {[%clk 0:02:49.1]} 10... Qc6 {[%clk 0:02:36.2]} 11. exd6
{[%clk 0:02:46.8]} 11... Qxg2 {[%clk 0:02:22.5]} 12. Rg1 {[%clk 0:02:41.2]}
12... Qxh2 {[%clk 0:01:59.6]} 13. Nc7+ {[%clk 0:02:31.4]} 13... Kd7 {[%clk
0:01:34.9]} 14. Nxa8 {[%clk 0:02:29.5]} 14... Bxa8 {[%clk 0:01:35.8]} 15. Qd4
{[%clk 0:02:26.6]} 15... Nc6 {[%clk 0:01:19.9]} 16. Qa4 {[%clk 0:02:25.3]} 16...
Bb7 {[%clk 0:01:10.6]} 17. Qb5 {[%clk 0:02:23.8]} 17... Kc8 {[%clk 0:00:58]} 18.
d7+ {[%clk 0:02:21.2]} 18... Kc7 {[%clk 0:00:52.8]} 19. Qb6+ {[%clk 0:02:18.7]}
19... Kb8 {[%clk 0:00:25.9]} 20. Qxc6 {[%clk 0:02:14.9]} 20... Be7 {[%clk
0:00:10.1]} 21. Qb6 {[%clk 0:02:00.6]} 21... Nf6 {[%clk 0:00:10.5]} 22. Nb5
{[%clk 0:01:54.8]} 22... Qh4+ {[%clk 0:00:05.3]} 23. Bf2 {[%clk 0:01:52.9]}
23... Qxf4 {[%clk 0:00:05.8]} 24. Qa7# {[%clk 0:01:51.6]} 1-0

[Event "*** SCC Grand Prix: Titled Tuesday Blitz"]
[Site "Chess.com"]
[Date "2020.06.23"]
[Round "10"]
[White "ljuks68"]
[Black "aNaartjieZA"]
[Result "0-1"]
[WhiteElo "2361"]
[BlackElo "2554"]
[TimeControl "180+1"]
[EndTime "11:55:07 PDT"]
[Termination "aNaartjieZA won by resignation"]

1. e4 {[%clk 0:03:00.9]} 1... e6 {[%clk 0:03:00.1]} 2. d4 {[%clk 0:02:57.7]}
2... d5 {[%clk 0:03:00.2]} 3. Nc3 {[%clk 0:02:57.3]} 3... Bb4 {[%clk 0:02:59.6]}
4. e5 {[%clk 0:02:57.2]} 4... c5 {[%clk 0:02:59.7]} 5. a3 {[%clk 0:02:57]} 5...
Bxc3+ {[%clk 0:03:00.3]} 6. bxc3 {[%clk 0:02:57.5]} 6... Ne7 {[%clk 0:03:00.9]}
7. h4 {[%clk 0:02:57.6]} 7... b6 {[%clk 0:02:58.2]} 8. h5 {[%clk 0:02:56.2]}
8... h6 {[%clk 0:02:58.4]} 9. Qg4 {[%clk 0:02:49.8]} 9... Kf8 {[%clk 0:02:55.5]}
10. a4 {[%clk 0:02:38.8]} 10... Ba6 {[%clk 0:02:55]} 11. Bxa6 {[%clk 0:02:37.4]}
11... Nxa6 {[%clk 0:02:54.6]} 12. a5 {[%clk 0:02:37.4]} 12... cxd4 {[%clk
0:02:49.2]} 13. axb6 {[%clk 0:01:54.2]} 13... axb6 {[%clk 0:02:34.9]} 14. Qe2
{[%clk 0:01:45.6]} 14... Nc5 {[%clk 0:02:28.4]} 15. Rxa8 {[%clk 0:01:44.2]}
15... Qxa8 {[%clk 0:02:28.3]} 16. cxd4 {[%clk 0:01:44.4]} 16... Qa1 {[%clk
0:02:26.5]} 17. Qd1 {[%clk 0:01:17]} 17... Ne4 {[%clk 0:02:25.5]} 18. Ne2 {[%clk
0:01:00.1]} 18... Nc6 {[%clk 0:02:08.8]} 19. O-O {[%clk 0:00:58.1]} 19... Nc3
{[%clk 0:01:55.3]} 20. Qd3 {[%clk 0:00:32.5]} 20... Nxe2+ {[%clk 0:01:53.9]} 21.
Qxe2 {[%clk 0:00:32.7]} 21... Qxd4 {[%clk 0:01:52.8]} 22. Be3 {[%clk 0:00:23.5]}
22... Qc4 {[%clk 0:01:43.3]} 23. Qg4 {[%clk 0:00:15.9]} 23... Qxg4 {[%clk
0:01:42.1]} 0-1

[Event "*** SCC Grand Prix: Titled Tuesday Blitz"]
[Site "Chess.com"]
[Date "2020.06.23"]
[Round "10"]
[White "PowerThinking2650"]
[Black "THE_PLAYER6"]
[Result "0-1"]
[WhiteElo "2320"]
[BlackElo "2455"]
[TimeControl "180+1"]
[EndTime "11:55:07 PDT"]
[Termination "THE_PLAYER6 won by resignation"]

1. e4 {[%clk 0:03:00.9]} 1... c5 {[%clk 0:02:59.7]} 2. Nf3 {[%clk 0:03:01]} 2...
d6 {[%clk 0:02:59.6]} 3. d4 {[%clk 0:03:01.5]} 3... cxd4 {[%clk 0:02:59.6]} 4.
Nxd4 {[%clk 0:03:02.4]} 4... Nf6 {[%clk 0:03:00.1]} 5. Nc3 {[%clk 0:03:02.6]}
5... a6 {[%clk 0:03:00.7]} 6. Bc4 {[%clk 0:03:03.1]} 6... e6 {[%clk 0:03:00.4]}
7. O-O {[%clk 0:03:02.8]} 7... Be7 {[%clk 0:02:57.2]} 8. Bb3 {[%clk 0:03:01.4]}
8... b5 {[%clk 0:02:56.7]} 9. f4 {[%clk 0:03:01.2]} 9... Bb7 {[%clk 0:02:54.5]}
10. f5 {[%clk 0:03:01.3]} 10... e5 {[%clk 0:02:49.3]} 11. Nde2 {[%clk
0:02:59.1]} 11... Nxe4 {[%clk 0:02:45.2]} 12. Nxe4 {[%clk 0:02:23.4]} 12... Bxe4
{[%clk 0:02:44.7]} 13. Ng3 {[%clk 0:02:23.4]} 13... Bb7 {[%clk 0:02:37.5]} 14.
Qg4 {[%clk 0:02:04.8]} 14... Bf6 {[%clk 0:02:32.9]} 15. Nh5 {[%clk 0:02:00.8]}
15... Nd7 {[%clk 0:02:19.8]} 16. Nxg7+ {[%clk 0:01:51.7]} 16... Bxg7 {[%clk
0:01:54.3]} 17. Qxg7 {[%clk 0:01:49.8]} 17... Qb6+ {[%clk 0:01:54.8]} 18. Rf2
{[%clk 0:01:34.7]} 18... O-O-O {[%clk 0:01:51.9]} 19. Qxf7 {[%clk 0:01:29.5]}
19... Rhg8 {[%clk 0:01:50.3]} 20. Qxg8 {[%clk 0:01:22.3]} 20... Rxg8 {[%clk
0:01:49.4]} 21. Bxg8 {[%clk 0:01:22.2]} 21... Nf6 {[%clk 0:01:49.5]} 22. Be6+
{[%clk 0:01:17]} 22... Kb8 {[%clk 0:01:49.3]} 23. Bg5 {[%clk 0:01:00.2]} 23...
Ne4 {[%clk 0:01:31.3]} 24. Bh4 {[%clk 0:00:54.7]} 24... Nxf2 {[%clk 0:01:27.5]}
25. Bxf2 {[%clk 0:00:52.8]} 25... Qc6 {[%clk 0:01:27.7]} 26. Kf1 {[%clk
0:00:48.4]} 26... Qxg2+ {[%clk 0:01:27.7]} 27. Ke2 {[%clk 0:00:47.2]} 27... Qf3+
{[%clk 0:01:27]} 28. Kf1 {[%clk 0:00:43.6]} 28... Qh1+ {[%clk 0:01:24.6]} 0-1

[Event "*** SCC Grand Prix: Titled Tuesday Blitz"]
[Site "Chess.com"]
[Date "2020.06.23"]
[Round "10"]
[White "TheLawAdv"]
[Black "silverback96"]
[Result "0-1"]
[WhiteElo "2023"]
[BlackElo "2272"]
[TimeControl "180+1"]
[EndTime "11:55:14 PDT"]
[Termination "silverback96 won by resignation"]

1. e4 {[%clk 0:03:00.9]} 1... e6 {[%clk 0:02:58.8]} 2. d4 {[%clk 0:02:59.3]}
2... c5 {[%clk 0:02:58.7]} 3. c3 {[%clk 0:02:58.5]} 3... a6 {[%clk 0:02:58.4]}
4. Nf3 {[%clk 0:02:58.5]} 4... cxd4 {[%clk 0:02:56.6]} 5. cxd4 {[%clk
0:02:58.5]} 5... d5 {[%clk 0:02:55.6]} 6. e5 {[%clk 0:02:58.4]} 6... Nc6 {[%clk
0:02:53.7]} 7. Be2 {[%clk 0:02:58]} 7... Nge7 {[%clk 0:02:53.3]} 8. O-O {[%clk
0:02:57.8]} 8... h5 {[%clk 0:02:53.1]} 9. Be3 {[%clk 0:02:36.6]} 9... Nf5 {[%clk
0:02:52.5]} 10. Nc3 {[%clk 0:02:35.4]} 10... Nxe3 {[%clk 0:02:52.3]} 11. fxe3
{[%clk 0:02:35.3]} 11... g6 {[%clk 0:02:49.6]} 12. Bd3 {[%clk 0:02:27.3]} 12...
Bh6 {[%clk 0:02:48.7]} 13. Qe2 {[%clk 0:02:25]} 13... O-O {[%clk 0:02:45.2]} 14.
a3 {[%clk 0:02:25.1]} 14... Ne7 {[%clk 0:02:42.2]} 15. e4 {[%clk 0:02:17.4]}
15... dxe4 {[%clk 0:02:40.9]} 16. Nxe4 {[%clk 0:02:17.6]} 16... Nf5 {[%clk
0:02:39.9]} 17. Nf6+ {[%clk 0:02:16.2]} 17... Kh8 {[%clk 0:02:40.5]} 18. Bxf5
{[%clk 0:02:06.9]} 18... exf5 {[%clk 0:02:39.6]} 19. Rfd1 {[%clk 0:01:54]} 19...
Bg7 {[%clk 0:02:37.7]} 20. Nxh5 {[%clk 0:01:43.8]} 20... gxh5 {[%clk 0:02:35.5]}
21. d5 {[%clk 0:01:42.4]} 21... Re8 {[%clk 0:02:30.1]} 22. h4 {[%clk 0:01:40]}
22... Qb6+ {[%clk 0:02:27.8]} 23. Kh1 {[%clk 0:01:37.1]} 23... Qg6 {[%clk
0:02:26.3]} 24. d6 {[%clk 0:01:14]} 24... Be6 {[%clk 0:02:18.7]} 25. d7 {[%clk
0:01:14]} 25... Red8 {[%clk 0:02:16.4]} 26. Rd6 {[%clk 0:01:12.9]} 26... Rxd7
{[%clk 0:02:15.3]} 27. Rad1 {[%clk 0:01:09.7]} 27... Rxd6 {[%clk 0:02:15.4]} 28.
exd6 {[%clk 0:01:07.4]} 28... Bh6 {[%clk 0:02:14.7]} 29. d7 {[%clk 0:01:06.8]}
29... Qf6 {[%clk 0:02:09.4]} 30. Ng5 {[%clk 0:01:00.1]} 30... Bxg5 {[%clk
0:02:09]} 31. hxg5 {[%clk 0:00:54.1]} 31... Qxg5 {[%clk 0:02:09.9]} 32. Qe5+
{[%clk 0:00:53.9]} 32... Kh7 {[%clk 0:02:10.1]} 33. Rd3 {[%clk 0:00:50.4]} 33...
Rg8 {[%clk 0:02:10.2]} 34. Rg3 {[%clk 0:00:44.9]} 34... Qc1+ {[%clk 0:02:04]}
35. Kh2 {[%clk 0:00:43.5]} 35... Bxd7 {[%clk 0:02:03.9]} 36. Rxg8 {[%clk
0:00:30.8]} 36... Kxg8 {[%clk 0:02:04.8]} 37. Qg3+ {[%clk 0:00:30]} 37... Kh7
{[%clk 0:02:03.1]} 0-1